bitfinex/quotes_BTCUSD_20241229
["timestamp","ask_amount","ask_price","bid_price","bid_amount"]
[1735487263232,0.28440299,94869.0,94865.0,0.0823]
[1735487264557,0.28440299,94867.0,94865.0,0.0823]
[1735487265521,0.28440299,94867.0,94861.0,0.0458]
[1735487265745,0.10398632,94866.0,94861.0,0.0458]
[1735487265920,0.55377132,94866.0,94850.0,0.0500708]
[1735487266123,1.589063,94865.0,94850.0,0.0500708]
[1735487266380,1.589063,94865.0,94850.0,0.0001708]
[1735487266381,0.38838931,94864.0,94850.0,0.0001708]
[1735487266585,1.825145,94863.0,94850.0,0.0001708]
[1735487266787,1.79023732,94862.0,94850.0,0.0001708]
[1735487267031,1.37261,94861.0,94850.0,0.0001708]
[1735487267217,0.0751,94866.0,94850.0,0.0001708]
[1735487267218,1.44149432,94860.0,94850.0,0.0001708]
[1735487267448,1.591916,94859.0,94850.0,0.0001708]
[1735487267592,1.5697517,94858.0,94850.0,0.0001708]
[1735487267795,0.002,94855.0,94850.0,0.0001708]
[1735487267993,2.94241732,94854.0,94850.0,0.0001708]
[1735487268220,2.63827,94853.0,94850.0,9.102e-05]
[1735487268419,0.10398632,94852.0,94850.0,9.102e-05]
[1735487268639,2.30966548,94852.0,94850.0,9.102e-05]
[1735487268834,2.262225,94851.0,94850.0,9.102e-05]
[1735487269034,2.36621132,94851.0,94850.0,9.102e-05]
[1735487269209,2.32932048,94851.0,94850.0,9.102e-05]
[1735487270301,1.64016548,94851.0,94850.0,9.102e-05]
[1735487271096,1.62032532,94851.0,94850.0,9.102e-05]
[1735487273709,1.78409932,94851.0,94850.0,9.102e-05]
[1735487273915,1.70158132,94851.0,94850.0,9.102e-05]
[1735487274882,1.71058132,94851.0,94850.0,9.102e-05]
[1735487275667,1.71558132,94851.0,94850.0,9.102e-05]
[1735487276268,1.71558132,94851.0,94850.0,4.865e-05]
[1735487276464,0.29178132,94851.0,94850.0,4.865e-05]
[1735487276666,0.29178132,94851.0,94841.0,0.0764]
[1735487276867,0.98602532,94850.0,94841.0,0.0764]
[1735487277114,0.653189,94849.0,94841.0,0.0764]
[1735487277313,0.72438032,94848.0,94841.0,0.0764]
[1735487277514,0.31991586,94845.0,94841.0,0.0764]
[1735487277718,0.248732,94844.0,94841.0,0.0764]
[1735487277925,0.10398632,94843.0,94832.0,0.0764]
[1735487278136,1.664757,94842.0,94832.0,0.0764]
[1735487278332,0.10398632,94841.0,94832.0,0.0764]
[1735487278657,1.57055,94840.0,94832.0,0.0764]
[1735487278784,1.465121,94839.0,94832.0,0.0764]
[1735487278982,0.923096,94839.0,94832.0,0.0764]
[1735487279212,1.027088,94839.0,94832.0,0.0764]
[1735487279428,0.28440498,94835.0,94832.0,0.0764]
[1735487279635,0.193996,94834.0,94832.0,0.1215]
[1735487280806,0.28440498,94833.0,94832.0,0.1215]
[1735487280916,0.52066298,94833.0,94832.0,0.1215]
[1735487281118,0.28440498,94833.0,94832.0,0.1215]
[1735487281551,0.39953498,94833.0,94832.0,0.1215]
[1735487282612,0.11513,94833.0,94832.0,0.1215]
[1735487283173,0.11613,94833.0,94832.0,0.1215]
[1735487284002,0.11713,94833.0,94832.0,0.1215]
[1735487285349,0.11713,94833.0,94832.0,0.11698505]
[1735487285490,0.40153498,94833.0,94832.0,0.11698505]
[1735487285694,0.40153498,94833.0,94832.0,0.11715585]
[1735487286553,0.19362453,94833.0,94832.0,0.11715585]
[1735487286754,0.80547,94839.0,94832.0,0.11715585]
[1735487286908,0.804413,94839.0,94832.0,0.11715585]
[1735487287911,0.607723,94839.0,94832.0,0.11715585]
[1735487288109,0.345282,94838.0,94832.0,0.11715585]
[1735487288312,0.533531,94839.0,94832.0,0.11715585]
[1735487288520,0.514472,94839.0,94832.0,0.11715585]
[1735487288841,0.404542,94839.0,94832.0,0.11715585]
[1735487289041,0.159004,94838.0,94832.0,0.11715585]
[1735487289339,0.003,94838.0,94832.0,0.11715585]
[1735487289568,0.159004,94837.0,94832.0,0.11715585]
[1735487289946,0.256701,94838.0,94832.0,0.11715585]
[1735487290182,0.002,94839.0,94832.0,0.11715585]
[1735487290183,0.006,94839.0,94832.0,0.11715585]
[1735487290836,0.006,94839.0,94833.0,0.0831]
[1735487291462,0.31991586,94853.0,94833.0,0.0831]
[1735487291664,0.59410832,94852.0,94833.0,0.0831]
[1735487291819,0.003,94837.0,94835.0,0.0831]
[1735487292039,0.10398632,94852.0,94835.0,0.0831]
[1735487292240,0.10398632,94852.0,94836.0,0.0466]
[1735487292241,0.230879,94851.0,94836.0,0.0466]
[1735487292474,0.003,94839.0,94837.0,0.0831]
[1735487292692,0.10398632,94850.0,94837.0,0.0831]
[1735487292957,0.101927,94849.0,94837.0,0.0831]
[1735487293201,0.23712923,94838.0,94837.0,0.0831]
[1735487293712,0.23912923,94838.0,94837.0,0.0831]
[1735487294171,8.007e-05,94853.0,94837.0,0.0831]
[1735487294367,8.007e-05,94853.0,94845.0,0.1297]
[1735487294565,8.007e-05,94853.0,94846.0,0.0831]
[1735487294769,8.007e-05,94853.0,94849.0,0.098]
[1735487294968,8.007e-05,94853.0,94850.0,0.0831]
[1735487295148,8.007e-05,94853.0,94852.0,0.098]
[1735487295456,8.007e-05,94853.0,94852.0,0.2277]
[1735487296011,0.23715743,94853.0,94852.0,0.2277]
[1735487297011,0.00208007,94853.0,94852.0,0.2277]
[1735487297399,0.00108007,94853.0,94852.0,0.2277]
[1735487297834,0.00108007,94853.0,94852.0,0.2287]
[1735487298239,8.007e-05,94853.0,94852.0,0.2287]
[1735487298741,0.00108007,94853.0,94852.0,0.2287]
[1735487299161,0.00116547,94853.0,94852.0,0.2287]
[1735487301622,0.23814249,94853.0,94852.0,0.2287]
[1735487302485,0.00116547,94853.0,94852.0,0.2287]
[1735487303100,0.00016547,94853.0,94852.0,0.2277]
[1735487306826,0.00016547,94853.0,94852.0,0.26047]
[1735487307036,0.00016547,94853.0,94852.0,0.2287]
[1735487316944,0.00016547,94853.0,94852.0,0.3287]
[1735487317820,0.00016547,94853.0,94852.0,0.3277]
[1735487318203,0.00016547,94853.0,94852.0,0.3287]
[1735487319325,0.00116547,94853.0,94852.0,0.3287]
[1735487319526,0.00116547,94853.0,94852.0,0.3277]
[1735487319733,0.00016547,94853.0,94852.0,0.36057]
[1735487319894,0.00116547,94853.0,94852.0,0.36257]
[1735487320453,0.00116547,94853.0,94852.0,0.36057]
[1735487320829,0.00116547,94853.0,94852.0,0.36357]
[1735487322894,0.00116547,94853.0,94852.0,0.46755632]
[1735487324970,0.00116547,94853.0,94852.0,0.56755632]
[1735487325829,0.00016547,94853.0,94852.0,0.56755632]
[1735487326003,0.00116547,94853.0,94852.0,0.56955632]
[1735487326383,0.00016547,94853.0,94852.0,0.56755632]
[1735487326586,0.00016547,94853.0,94852.0,0.56455632]
[1735487327002,0.00116547,94853.0,94852.0,0.56925502]
[1735487327600,0.00116547,94853.0,94852.0,0.56625502]
[1735487328246,0.00216547,94853.0,94852.0,0.57125502]
[1735487328680,0.21997399,94874.0,94873.0,0.0976987]
[1735487328837,0.22048041,94874.0,94873.0,0.2237987]
[1735487329850,0.00050642,94874.0,94873.0,0.2237987]
[1735487330024,0.00050642,94874.0,94873.0,0.25817857]
[1735487330383,0.00050642,94874.0,94873.0,0.25917857]
[1735487331778,0.00050642,94874.0,94873.0,0.2267987]
[1735487333980,0.01168218,94893.0,94873.0,0.2267987]
[1735487334181,0.176643,94892.0,94873.0,0.2267987]
[1735487334776,0.147292,94892.0,94873.0,0.2267987]
[1735487334970,0.01179428,94893.0,94873.0,0.2267987]
[1735487334971,0.01179428,94893.0,94873.0,0.2237987]
[1735487335239,0.124752,94892.0,94874.0,0.03237987]
[1735487335518,0.0031121,94893.0,94874.0,0.03237987]
[1735487335744,0.247291,94892.0,94874.0,0.03237987]
[1735487336411,0.23711456,94883.0,94874.0,0.03237987]
[1735487337165,0.23711456,94882.0,94873.0,0.2237987]
[1735487337968,0.23711456,94880.0,94873.0,0.2237987]
[1735487339880,0.23711456,94877.0,94873.0,0.2237987]
[1735487341871,0.23711456,94877.0,94876.0,0.0976987]
[1735487342072,0.28485832,94889.0,94877.0,0.0789]
[1735487342291,0.28485832,94889.0,94888.0,0.0976987]
[1735487342891,0.28485832,94889.0,94888.0,0.2237987]
[1735487343137,8.54e-05,94892.0,94888.0,0.24617857]
[1735487343708,0.001,94889.0,94888.0,0.24617857]
[1735487344114,8.54e-05,94892.0,94888.0,0.2237987]
[1735487344671,0.0020854,94892.0,94888.0,0.2237987]
[1735487344901,0.0020854,94892.0,94891.0,0.0976987]
[1735487346043,0.0030854,94892.0,94891.0,0.0976987]
[1735487346991,0.0010854,94892.0,94891.0,0.0976987]
[1735487347388,0.0010854,94892.0,94891.0,0.11442182]
[1735487347593,0.0010854,94892.0,94891.0,0.11048115]
[1735487348109,0.0030854,94892.0,94891.0,0.11048115]
[1735487348309,0.0020854,94892.0,94891.0,0.11048115]
[1735487348755,0.0030854,94892.0,94891.0,0.11048115]
[1735487352937,0.0030854,94892.0,94891.0,0.31446747]
[1735487353160,0.0030854,94892.0,94891.0,0.39376747]
[1735487354351,0.0010854,94892.0,94891.0,0.43946747]
[1735487354760,0.0010854,94892.0,94891.0,0.44446747]
[1735487355394,8.54e-05,94892.0,94891.0,0.44446747]
[1735487355801,8.54e-05,94892.0,94891.0,0.54646747]
[1735487356390,8.54e-05,94892.0,94891.0,0.54446747]
[1735487356783,8.54e-05,94892.0,94891.0,0.54946747]
[1735487357052,8.54e-05,94892.0,94891.0,0.54446747]
[1735487357420,0.0010854,94892.0,94891.0,0.55346747]
[1735487357624,8.54e-05,94892.0,94891.0,0.54446747]
[1735487357828,8.53e-05,94905.0,94904.0,0.18810128]
[1735487358072,8.53e-05,94905.0,94904.0,0.5180876]
[1735487359476,8.53e-05,94905.0,94904.0,0.5170876]
[1735487359687,8.53e-05,94905.0,94904.0,0.4170876]
[1735487360280,8.53e-05,94905.0,94904.0,0.21310128]
[1735487360486,0.0010853,94905.0,94904.0,0.31910128]
[1735487360863,0.0020853,94905.0,94904.0,0.10110128]
[1735487361061,0.0010853,94905.0,94904.0,0.09210128]
[1735487361471,0.0020853,94905.0,94904.0,0.10110128]
[1735487361676,0.0010853,94905.0,94904.0,0.19210128]
[1735487362064,0.31401457,94920.0,94904.0,0.19910128]
[1735487362464,0.31401457,94920.0,94905.0,0.1]
[1735487362661,0.23674387,94915.0,94905.0,0.1]
[1735487362861,0.23674387,94915.0,94904.0,0.09910128]
[1735487363346,0.0772707,94920.0,94910.0,0.08610128]
[1735487363347,0.23674387,94916.0,94910.0,0.08610128]
[1735487364460,0.23674387,94917.0,94910.0,0.08510128]
[1735487365226,0.23674387,94918.0,94910.0,0.08510128]
[1735487365419,0.23689569,94918.0,94911.0,0.01911013]
[1735487366572,0.23689569,94918.0,94910.0,0.08610128]
[1735487366935,0.00015182,94918.0,94910.0,0.08610128]
[1735487367961,0.00015182,94918.0,94910.0,0.08810128]
[1735487368365,0.00015182,94918.0,94910.0,0.08610128]
[1735487368530,0.00015182,94918.0,94910.0,0.08510128]
[1735487368893,0.00015182,94918.0,94911.0,0.01951013]
[1735487369426,0.00015182,94918.0,94917.0,0.08510128]
[1735487371394,0.00015182,94918.0,94917.0,0.08493628]
[1735487371568,0.00015182,94918.0,94917.0,0.08482628]
[1735487371768,0.00023722,94918.0,94917.0,0.08477128]
[1735487372168,0.00023722,94918.0,94917.0,0.08577128]
[1735487372372,0.00023722,94918.0,94917.0,0.08777128]
[1735487374037,0.00023722,94918.0,94917.0,0.003]
[1735487374232,0.00023722,94918.0,94917.0,0.08777128]
[1735487375887,0.00023722,94918.0,94917.0,0.003]
[1735487376498,0.18947488,94918.0,94917.0,0.003]
[1735487376769,0.18947488,94918.0,94917.0,0.002]
[1735487378048,0.18947488,94918.0,94917.0,0.003]
[1735487378731,0.18947488,94918.0,94917.0,0.002]
[1735487378942,0.18947488,94918.0,94917.0,0.003]
[1735487379180,0.00023722,94918.0,94917.0,0.003]
[1735487382811,0.18956513,94918.0,94917.0,0.08777128]
[1735487383725,0.18956513,94918.0,94917.0,0.08794188]
[1735487383928,0.18956513,94918.0,94917.0,0.15318607]
[1735487384161,0.18956513,94918.0,94917.0,0.13674188]
[1735487384948,0.18956513,94918.0,94917.0,0.13574188]
[1735487385150,0.00023722,94918.0,94917.0,0.13574188]
[1735487385353,0.00023722,94918.0,94917.0,0.13774188]
[1735487385704,0.00023722,94918.0,94917.0,0.13574188]
[1735487386151,0.00023722,94918.0,94917.0,0.14074188]
[1735487386443,0.00023722,94918.0,94917.0,0.13874188]
[1735487387923,0.00023722,94918.0,94917.0,0.35075239]
[1735487388120,0.00023722,94918.0,94917.0,0.35275239]
[1735487388638,0.00023722,94918.0,94917.0,0.3212282]
[1735487391080,0.00023722,94918.0,94917.0,0.23645692]
[1735487391261,0.00023722,94918.0,94917.0,0.3212282]
[1735487391636,0.00023722,94918.0,94917.0,0.14074188]
[1735487392037,0.00023722,94918.0,94917.0,0.0071706]
[1735487392854,0.00023722,94918.0,94917.0,0.0051706]
[1735487393222,0.00023722,94918.0,94917.0,0.0001706]
[1735487393447,0.00023722,94918.0,94917.0,0.0011706]
[1735487393681,0.28409372,94918.0,94917.0,0.0021706]
[1735487393914,0.28409372,94918.0,94917.0,0.0011706]
[1735487394145,0.28409372,94918.0,94917.0,0.0001706]
[1735487394633,0.00023722,94918.0,94917.0,0.0011706]
[1735487395442,0.00023722,94918.0,94917.0,0.0021706]
[1735487396496,0.00023722,94918.0,94917.0,0.2700282]
[1735487396704,0.00023722,94918.0,94917.0,0.35633102]
[1735487397724,0.00023722,94918.0,94917.0,0.3193282]
[1735487398285,0.00023722,94918.0,94917.0,0.3183282]
[1735487398513,0.00023722,94918.0,94917.0,0.3173282]
[1735487398666,0.00023722,94918.0,94917.0,0.3193282]
[1735487398863,0.00123722,94918.0,94917.0,0.24055692]
[1735487399064,0.00123722,94918.0,94917.0,0.3233282]
[1735487399266,0.00123722,94918.0,94917.0,0.3173282]
[1735487399267,0.00023722,94918.0,94917.0,0.3173282]
[1735487399512,0.00023722,94918.0,94917.0,0.3203282]
[1735487399732,0.00023722,94918.0,94917.0,0.2836282]
[1735487400019,0.00123722,94918.0,94917.0,0.19368192]
[1735487400443,0.28617103,94918.0,94917.0,0.2784532]
[1735487400646,0.28617103,94918.0,94917.0,0.09577128]
[1735487400875,0.168697,94926.0,94917.0,0.09577128]
[1735487401220,0.168697,94926.0,94918.0,0.01957713]
[1735487401421,0.168697,94928.0,94922.0,0.08477128]
[1735487401828,0.168697,94928.0,94927.0,0.08477128]
[1735487402230,0.168697,94928.0,94927.0,0.08377128]
[1735487402430,8.54e-05,94930.0,94927.0,0.08377128]
[1735487402751,8.54e-05,94930.0,94929.0,0.08377128]
[1735487403371,8.54e-05,94930.0,94926.0,0.0493]
[1735487403735,8.54e-05,94930.0,94929.0,0.08377128]
[1735487404380,8.54e-05,94930.0,94929.0,0.08477128]
[1735487405821,8.54e-05,94930.0,94929.0,0.16492457]
[1735487406019,8.54e-05,94930.0,94929.0,0.16792457]
[1735487407386,8.54e-05,94930.0,94929.0,0.26792457]
[1735487407500,8.54e-05,94930.0,94929.0,0.26687128]
[1735487408646,8.54e-05,94930.0,94929.0,0.29848841]
[1735487409072,8.54e-05,94930.0,94929.0,0.26687128]
[1735487411051,0.28489303,94947.0,94946.0,0.30817128]
[1735487411252,0.28489303,94947.0,94946.0,0.4121576]
[1735487411449,0.28504482,94947.0,94946.0,0.4121576]
[1735487411662,0.00015179,94947.0,94946.0,0.4121576]
[1735487411865,0.00015179,94947.0,94946.0,0.045]
[1735487412073,0.00015179,94947.0,94946.0,0.08377128]
[1735487412286,0.00015179,94947.0,94929.0,0.001]
[1735487412287,0.19776179,94947.0,94929.0,0.001]
[1735487412459,0.076,94945.0,94929.0,0.001]
[1735487412661,1.11996332,94944.0,94925.0,0.08377128]
[1735487412876,0.00015179,94947.0,94932.0,0.08377128]
[1735487413078,0.00015179,94947.0,94928.0,0.1]
[1735487413079,0.284743,94935.0,94933.0,0.08377128]
[1735487413873,0.284743,94936.0,94933.0,0.08377128]
[1735487414674,0.01115179,94947.0,94933.0,0.08377128]
[1735487414675,0.284743,94943.0,94933.0,0.08377128]
[1735487414869,0.420038,94942.0,94933.0,0.08377128]
[1735487415072,0.391738,94942.0,94941.0,0.08377128]
[1735487415271,0.284743,94943.0,94942.0,0.08377128]
[1735487415725,0.32050465,94945.0,94942.0,0.08377128]
[1735487415873,0.32050465,94945.0,94944.0,0.18377128]
[1735487416598,0.32050465,94945.0,94944.0,0.18277128]
[1735487416965,0.00015179,94947.0,94944.0,0.18277128]
[1735487417163,0.00015179,94947.0,94946.0,0.08177128]
[1735487417593,0.28477522,94947.0,94946.0,0.08177128]
[1735487417789,0.28477522,94947.0,94946.0,0.2857576]
[1735487418190,0.28477522,94947.0,94946.0,0.18177128]
[1735487418592,0.28477522,94947.0,94934.0,0.045]
[1735487418593,0.28477522,94947.0,94941.0,0.1]
[1735487418798,0.28477522,94947.0,94944.0,0.002]
[1735487418799,0.00015179,94947.0,94944.0,0.002]
[1735487419030,0.10398632,94946.0,94944.0,0.002]
[1735487419233,0.51065032,94946.0,94944.0,0.002]
[1735487419440,0.00015179,94947.0,94944.0,0.002]
[1735487419441,0.135092,94945.0,94944.0,0.002]
[1735487419666,0.134649,94946.0,94944.0,0.006]
[1735487420006,0.310477,94946.0,94944.0,0.002]
[1735487420204,0.32050465,94945.0,94944.0,0.002]
[1735487421234,0.32550465,94946.0,94944.0,0.002]
[1735487421412,0.32050465,94946.0,94935.0,0.08177128]
[1735487421996,0.28459557,94937.0,94935.0,0.08177128]
[1735487422195,0.28459557,94937.0,94936.0,0.1857576]
[1735487422403,0.28459557,94937.0,94936.0,0.3651576]
[1735487422803,0.28459557,94937.0,94936.0,0.18177128]
[1735487423248,0.28459557,94942.0,94936.0,0.18177128]
[1735487424199,0.28459557,94942.0,94936.0,0.18777128]
[1735487424396,0.28459557,94942.0,94941.0,0.08177128]
[1735487424527,0.00023719,94947.0,94943.0,0.08177128]
[1735487424528,0.28459557,94944.0,94943.0,0.08177128]
[1735487424730,0.28459557,94944.0,94943.0,0.12847128]
[1735487424935,0.28459557,94944.0,94943.0,0.12647128]
[1735487425154,0.28459557,94946.0,94943.0,0.12647128]
[1735487425512,0.28459557,94946.0,94945.0,0.07977128]
[1735487426036,0.30111688,94946.0,94945.0,0.07977128]
[1735487426270,0.01652131,94946.0,94945.0,0.07977128]
[1735487426880,0.01624221,94946.0,94945.0,0.07977128]
[1735487427141,0.01624221,94946.0,94945.0,0.19241841]
[1735487427366,0.30083778,94946.0,94945.0,0.07977128]
[1735487427567,0.30083778,94946.0,94945.0,0.17977128]
[1735487428133,0.01624221,94946.0,94945.0,0.17977128]
[1735487428458,0.00023719,94947.0,94945.0,0.18477128]
[1735487429012,0.00023719,94947.0,94946.0,0.07977128]
[1735487431368,0.01675849,94947.0,94946.0,0.08177128]
[1735487431984,0.01675849,94947.0,94946.0,0.08577128]
[1735487432408,0.01675849,94947.0,94946.0,0.26237128]
[1735487432625,0.01675849,94947.0,94946.0,0.3663576]
[1735487433475,0.01675849,94947.0,94946.0,0.28658632]
[1735487433693,0.01675849,94947.0,94946.0,0.26237128]
[1735487433898,0.01675849,94947.0,94946.0,0.18577128]
[1735487434097,0.01675849,94947.0,94946.0,0.08577128]
[1735487434546,0.01675849,94947.0,94946.0,0.18577128]
[1735487436752,0.01675849,94947.0,94946.0,0.08577128]
[1735487437688,0.01675849,94947.0,94946.0,0.18577128]
[1735487437889,0.01675849,94947.0,94946.0,0.19941841]
[1735487439478,0.00023719,94947.0,94946.0,0.19941841]
[1735487441196,0.00023719,94947.0,94946.0,0.27931841]
[1735487442411,0.01675741,94947.0,94946.0,0.27931841]
[1735487443857,0.00023719,94947.0,94946.0,0.27931841]
[1735487444199,0.00023719,94947.0,94946.0,0.26567128]
[1735487444908,0.00023719,94947.0,94946.0,0.18577128]
[1735487445671,0.00023719,94947.0,94946.0,0.18594208]
[1735487445883,0.00023719,94947.0,94946.0,0.08594208]
[1735487447411,0.01675786,94947.0,94946.0,0.08594208]
[1735487449329,0.09432481,94952.0,94950.0,0.07977128]
[1735487449733,0.09432481,94952.0,94951.0,0.07977128]
[1735487449953,0.11084538,94952.0,94951.0,0.07977128]
[1735487450109,0.01652057,94952.0,94951.0,0.07977128]
[1735487453599,0.01652057,94952.0,94951.0,0.08177128]
[1735487453826,0.0833,94970.0,94951.0,0.08277128]
[1735487454232,0.400819,94968.0,94951.0,0.08277128]
[1735487454723,0.400819,94968.0,94951.0,0.08177128]
[1735487454871,0.400819,94968.0,94951.0,0.07977128]
[1735487455406,0.09722872,94966.0,94946.0,0.0001708]
[1735487455755,1.64276332,94965.0,94946.0,0.0001708]
[1735487455933,0.02022872,94959.0,94946.0,0.0001708]
[1735487456156,1.622784,94964.0,94946.0,0.0001708]
[1735487456157,0.077,94955.0,94946.0,0.0001708]
[1735487456394,0.02022872,94956.0,94946.0,0.0001708]
[1735487456395,2.67938332,94954.0,94946.0,0.0001708]
[1735487456540,3.244751,94953.0,94946.0,0.0001708]
[1735487456749,3.12441832,94952.0,94946.0,0.0001708]
[1735487456930,2.595437,94951.0,94946.0,0.0001708]
[1735487457136,0.10398632,94950.0,94946.0,0.0001708]
[1735487457398,2.990031,94949.0,94946.0,0.0001708]
[1735487457627,0.10398632,94948.0,94946.0,0.0001708]
[1735487457956,3.373702,94947.0,94946.0,0.0001708]
[1735487458168,3.55648832,94947.0,94946.0,0.0001708]
[1735487459755,3.57631144,94947.0,94946.0,0.0001708]
[1735487461055,3.57631144,94947.0,94946.0,8.667e-05]
[1735487461267,3.57831144,94947.0,94946.0,8.667e-05]
[1735487461444,3.58231144,94947.0,94946.0,8.667e-05]
[1735487464866,0.18878632,94947.0,94946.0,8.667e-05]
[1735487465068,5.12365632,94947.0,94946.0,8.667e-05]
[1735487465843,5.14347963,94947.0,94946.0,8.667e-05]
[1735487466598,0.27737431,94947.0,94946.0,8.667e-05]
[1735487466808,3.00543331,94947.0,94946.0,8.667e-05]
[1735487467007,3.03876031,94947.0,94946.0,8.667e-05]
[1735487467210,3.05528343,94947.0,94946.0,8.667e-05]
[1735487467422,0.15002243,94947.0,94946.0,8.667e-05]
[1735487467623,0.04234643,94947.0,94946.0,8.667e-05]
[1735487468373,0.01652312,94947.0,94946.0,8.667e-05]
[1735487468689,0.02252312,94947.0,94946.0,8.667e-05]
[1735487469118,0.02052312,94947.0,94946.0,8.667e-05]
[1735487469383,0.30495054,94947.0,94946.0,8.667e-05]
[1735487469599,0.30695054,94947.0,94946.0,8.667e-05]
[1735487470065,0.43144554,94947.0,94946.0,8.667e-05]
[1735487470238,0.12631812,94947.0,94946.0,8.667e-05]
[1735487471977,0.12431812,94947.0,94946.0,8.667e-05]
[1735487472236,0.12031812,94947.0,94946.0,8.667e-05]
[1735487472487,0.12231812,94947.0,94946.0,8.667e-05]
[1735487472703,0.02160852,94947.0,94946.0,8.667e-05]
[1735487473019,0.02160852,94947.0,94946.0,0.12348267]
[1735487473760,0.0050854,94947.0,94946.0,0.12348267]
[1735487475985,0.0050854,94947.0,94946.0,0.17068267]
[1735487477330,0.30602719,94947.0,94946.0,0.17068267]
[1735487478053,0.01960732,94947.0,94946.0,0.17068267]
[1735487483842,0.0030854,94947.0,94946.0,0.17068267]
[1735487484679,0.28750527,94947.0,94946.0,0.17068267]
[1735487485538,0.0030854,94947.0,94946.0,0.17068267]
[1735487486445,0.0030854,94947.0,94946.0,0.25045395]
[1735487486669,0.0030854,94947.0,94946.0,0.33105395]
[1735487487323,0.01660678,94947.0,94946.0,0.33105395]
[1735487487919,0.01660678,94947.0,94946.0,0.33305395]
[1735487488412,0.01660678,94947.0,94946.0,0.25428267]
[1735487488649,0.01660678,94947.0,94946.0,0.33205395]
[1735487488884,0.01660678,94947.0,94946.0,0.33105395]
[1735487489295,0.01660678,94947.0,94946.0,0.33305395]
[1735487489712,0.01660678,94947.0,94946.0,0.25328267]
[1735487490587,0.01660678,94947.0,94946.0,0.25828267]
[1735487490746,0.01660678,94947.0,94946.0,0.33805395]
[1735487490952,0.01660678,94947.0,94946.0,0.33305395]
[1735487491337,0.01660678,94947.0,94946.0,0.25428267]
[1735487492189,0.01660678,94947.0,94946.0,0.25528267]
[1735487492590,0.01660678,94947.0,94946.0,0.25428267]
[1735487493063,0.01660678,94947.0,94946.0,0.12748267]
[1735487493292,0.1205931,94947.0,94946.0,0.12748267]
[1735487493691,0.01660678,94947.0,94946.0,0.12748267]
[1735487493920,8.54e-05,94947.0,94946.0,0.12748267]
[1735487494145,8.54e-05,94947.0,94946.0,0.12448267]
[1735487494345,0.5448004,94947.0,94946.0,0.12448267]
[1735487494527,0.5448004,94947.0,94946.0,0.12348267]
[1735487494662,0.5468004,94947.0,94946.0,0.12648267]
[1735487495105,0.5468004,94947.0,94946.0,0.12348267]
[1735487495318,0.5448004,94947.0,94946.0,0.12348267]
[1735487495547,0.5498004,94947.0,94946.0,0.12348267]
[1735487498503,0.56632296,94947.0,94946.0,0.12348267]
[1735487498703,0.44304196,94947.0,94946.0,0.12348267]
[1735487498907,0.34429696,94947.0,94946.0,0.12348267]
[1735487499331,0.66454486,94947.0,94946.0,0.12348267]
[1735487501168,0.34429696,94947.0,94946.0,0.12348267]
[1735487503890,0.3277744,94947.0,94946.0,0.12348267]
[1735487505453,0.2819074,94947.0,94946.0,0.12348267]
[1735487505755,0.2185794,94947.0,94946.0,0.12348267]
[1735487507191,0.23510197,94947.0,94946.0,0.12348267]
[1735487509902,0.19457297,94947.0,94946.0,0.12348267]
[1735487510263,0.15017497,94947.0,94946.0,0.12348267]
[1735487510601,0.15217497,94947.0,94946.0,0.12348267]
[1735487511110,0.15017497,94947.0,94946.0,0.12348267]
[1735487511310,0.14717497,94947.0,94946.0,0.12348267]
[1735487511536,0.38770208,94961.0,94946.0,0.12348267]
[1735487511741,0.003,94947.0,94946.0,0.12348267]
[1735487511939,0.39558934,94947.0,94946.0,0.12348267]
[1735487512139,0.01952234,94947.0,94946.0,0.12348267]
[1735487512608,0.25698334,94947.0,94946.0,0.12448267]
[1735487512823,0.25698334,94947.0,94946.0,0.20478267]
[1735487512824,0.01952234,94947.0,94946.0,0.20478267]
[1735487513005,0.01952234,94947.0,94946.0,0.23323807]
[1735487514358,0.01952234,94947.0,94946.0,0.20478267]
[1735487514962,0.003,94947.0,94946.0,0.20478267]
[1735487516324,0.003,94947.0,94946.0,0.12448267]
[1735487516528,0.28801942,94947.0,94946.0,0.12448267]
[1735487516734,0.47995842,94947.0,94946.0,0.12448267]
[1735487517386,0.194939,94947.0,94946.0,0.12448267]
[1735487517758,0.1950244,94947.0,94946.0,0.12448267]
[1735487518165,0.21154682,94947.0,94946.0,0.12448267]
[1735487519400,0.31553314,94947.0,94946.0,0.12448267]
[1735487522034,0.31553314,94947.0,94946.0,0.06190365]
[1735487523094,4.92789714,94947.0,94946.0,0.06190365]
[1735487523684,4.94771668,94947.0,94946.0,0.06190365]
[1735487523884,4.93119426,94947.0,94946.0,0.06190365]
[1735487524088,0.0802,94946.0,94927.0,0.0001706]
[1735487524297,0.02022872,94943.0,94935.0,0.00015179]
[1735487524500,2.21520232,94942.0,94935.0,0.00015179]
[1735487524734,2.273435,94941.0,94935.0,0.00015179]
[1735487524926,0.10398632,94940.0,94935.0,0.00015179]
[1735487525083,0.02022872,94936.0,94935.0,0.00015179]
[1735487525298,2.19802104,94936.0,94935.0,0.00015179]
[1735487525490,2.61501204,94936.0,94935.0,0.00015179]
[1735487525714,2.61472104,94936.0,94935.0,0.00015179]
[1735487525879,2.04304304,94936.0,94935.0,0.00015179]
[1735487526431,2.02281432,94936.0,94935.0,0.00015179]
[1735487526636,1.02047032,94936.0,94915.0,0.11947781]
[1735487526845,1.23757232,94935.0,94915.0,0.11947781]
[1735487527051,1.169118,94934.0,94916.0,0.01992491]
[1735487527345,0.01652623,94931.0,94915.0,0.11947781]
[1735487527498,0.0802,94929.0,94905.0,0.048]
[1735487527700,0.02022872,94923.0,94906.0,0.00015182]
[1735487527902,0.02022872,94917.0,94906.0,0.00015182]
[1735487528131,0.10398632,94914.0,94906.0,0.00015182]
[1735487528328,0.02022872,94908.0,94906.0,0.00015182]
[1735487528533,2.93799932,94907.0,94906.0,0.00015182]
[1735487528694,2.91061732,94907.0,94906.0,0.00015182]
[1735487529938,1.73664832,94907.0,94906.0,0.00015182]
[1735487530134,1.52677732,94907.0,94906.0,0.00015182]
[1735487530377,0.59083232,94907.0,94906.0,0.00015182]
[1735487530581,0.59483232,94907.0,94906.0,0.00015182]
[1735487531155,0.59083232,94907.0,94906.0,0.00015182]
[1735487531394,0.59283232,94907.0,94906.0,0.00015182]
[1735487532782,0.59083232,94907.0,94906.0,0.00015182]
[1735487532982,0.59283232,94907.0,94906.0,0.00015182]
[1735487533428,0.87694422,94907.0,94906.0,0.00015182]
[1735487533632,0.87494422,94907.0,94906.0,0.00015182]
[1735487533923,0.88094422,94907.0,94906.0,0.00015182]
[1735487534135,0.10998632,94907.0,94906.0,0.00015182]
[1735487534642,1.45752332,94907.0,94906.0,0.00015182]
[1735487534800,1.60310132,94907.0,94906.0,0.00015182]
[1735487535004,1.55432332,94907.0,94906.0,0.00015182]
[1735487536009,1.25501332,94907.0,94906.0,0.00015182]
[1735487536207,1.53884271,94907.0,94906.0,0.00015182]
[1735487536791,1.51221071,94907.0,94906.0,0.00015182]